Workbook

Sheet Introduction
C6: Completing an ERP project takes a dedicated team. What roles do you need? How much time do they need to free up? And in which phase of the project do you need them? With this tool, you’ll get an estimation of the effort in days your team will need to dedicate to your ERP project. This is a high level estimation based on the Cegeka Sure Value implementation methodology to offer you a first impression of the effort your team will need to invest in the ERP project. We have also split the number of days over the three phases we typically see in a project. Our calculation is based upon the scope/size of your project and provides an estimated overview of the effort in days you'll need on your project. Below you get an explanation of the project scope you can choose from, as well as the project phases we define. In the next sheet we zoom in on the different roles that are typically involved in an implementation.
C8: Project types: Use the color codes below to identify which description best fits your situation
C9: Orange | D9: Small to midsized company, local implementation, limited amount of entities and limited scope
C10: Yellow | D10: Midsized company with either limited scope and multiple entities or single entity and average scope
C11: Green | D11: Midsized to large company, either local implementation with more complex scope or average scope and multiple entities
C12: Blue | D12: Large size companies with multiple entities, active in multiple countries
C13: Purple | D13: Enterprise company, full international scope
C15: Project phases: The Cegeka SureValue methodology distinguishes the following phases:
C16: Analysis | D16: During the first phase of the project, the focus is on defining the processes and requirements as well as deciding on the solution blueprint
C17: Design & Build | D17: In the second phase, the solution will be designed and build. This includes parametrizing, key-user training, testing, validating and documenting of the solution.
C18: Release | D18: Finally, the solution will be integration tested, user accepted and the end-users will be trained. Go-live, hypercare and the transition to the support organization are the final steps of your ERP project.

Sheet Project Roles
C6: It's important to note that not all of the roles and responsibilities that are described in this document need to be covered by your own internal people. Based on your own situation and the capabilities within the company, you could decide to outsoure some activities. Obviously, this will have an impact on the number of days that is calculated in this sheet; on the other hand your budget will increase with expenses to third parties. Business roles typically reflect the core of your business and are therefore hard to outsource. IT-related responsibilities for example, or change and test management could more easilty be done by your implementation partner of third party. Aantal key users > vrij in te vullen door klant over hoeveel mensen dat gaat. Aantal mandagen te verdelen over aantal mensen. 1 key user per domein voor blauw/groen - of zelfs 1 KU meerdere domeinen.
C8: In our calculation sheet, we've grouped different roles in the following domains: - Management: operational project management, change management - Business: business process owners, key users, business anayst, process architect - IT: security, release & deployments, IT operations, technical architect, data migration, test management
C10: Project Roles
C11: Management | D11: Project Manager | E11: Responsible for the successful implementation of the project, from start to finish. Project coordination and communication
D12: Change Manager | E12: Is responsible for planning, developing, delivering, and tracking change management deliverables including communications, training, stakeholder engagement, change impact assessment, organizational readiness analysis, coaching, resistance management and change reinforcement
C13: Business | D13: Business Process Owner / Key user | E13: The process owner / key-user acts throughout the project as single point of contact (SPOC) for one or more processes or process areas. Although process owner and key-user can be one and the same person, typically the process owner is the SPOC for business process analysis and requirements gathering (the WHAT and WHY during the BPSA phase), whereas the key-user becomes the SPOC for the design, build and testing (the HOW during the SD&B and Release phase). If these roles are split, key-users consult and collaborate with their process owners
C15: IT | D15: Enterprise Architect | E15: Participates in the architectural decision taking and monitors that architectural decisions regarding the solution to be implemented contributes to achieving the vision of the organization. Has knowledge of and experience with all architectural aspects and monitors the consistency and connection between those aspects
D16: IT responsible | E16: The IT Team encompasses various IT-roles responsible for the maintenance, support and operations of legacy application and may be involved in various project activities like data extractions, legacy developments, analysis and design
D17: Test Manager | E17: The Test Manager oversees the day to day managing and follow up of all testing activities. He or she is responsible for the test strategy. This strategy will set boundaries and decisions for the whole project, regardless of business units, applications under test or technical frameworks. He/she will also supervise the test plan per test campaign in alignment with the test strategy.
D18: Security Responsible | E18: Is responsible for user management and determining and assigning the necessary security privileges and roles, according to the organization’s security policy.
D19: Documents Responsible | E19: Is responsible for the planning, organization and coordination of the activities related to design, development and testing of document and report lay-outs
D20: Data Migration Responsible | E20: Is responsible for the planning, organization, coordination and follow-up of the activities related to data migration (data quality, extraction, transformation/mapping, data load).

Sheet Customer Effort Estimator
D2: CUSTOMER EFFORT ESTIMATOR for ERP Projects | J2: Version : | K2: =LOOKUP(2,1/(TabTemplateVersions[Template Version]>""),TabTemplateVersions[Template Version]) -> 1.0
J3: Date : | K3: =LOOKUP(2,1/(TabTemplateVersions[Date]>1),TabTemplateVersions[Date]) -> 2022-06-20
B5: Schedule Unit | D5: Average Duration per Phase | J5: Total Duration
B6: Weeks | D6: =IF(AND(ScheduleUnit<>"",ProjectType<>""),INDEX(TabProjectTypes[Analysis Duration Weeks],MATCH(ProjectType,TabProjectTypes[Type],0))/INDEX(TabScheduleUnits[Weeks],MATCH(ScheduleUnit,TabScheduleUnits[Unit],0)),"") -> 8 | E6: =IF(ScheduleUnit<>"",ScheduleUnit,"") -> Weeks | F6: =IF(AND(ScheduleUnit<>"",ProjectType<>""),INDEX(TabProjectTypes[Design & Build Duration Weeks],MATCH(ProjectType,TabProjectTypes[Type],0))/INDEX(TabScheduleUnits[Weeks],MATCH(ScheduleUnit,TabScheduleUnits[Unit],0)),"") -> 32 | G6: =IF(ScheduleUnit<>"",ScheduleUnit,"") -> Weeks | H6: =IF(AND(ScheduleUnit<>"",ProjectType<>""),INDEX(TabProjectTypes[Release Duration Weeks],MATCH(ProjectType,TabProjectTypes[Type],0))/INDEX(TabScheduleUnits[Weeks],MATCH(ScheduleUnit,TabScheduleUnits[Unit],0)),"") -> 8 | I6: =IF(ScheduleUnit<>"",ScheduleUnit,"") -> Weeks | J6: =SUM(D6,F6,H6) -> 48 | K6: =IF(ScheduleUnit<>"",ScheduleUnit,"") -> Weeks
D7: ANALYSIS | F7: DESIGN & BUILD | H7: RELEASE | J7: TOTAL PROJECT
B8: Project Roles | C8: Area | D8: Total days | E8: =IF(ScheduleUnit<>"","d/"&LEFT(ScheduleUnit,LEN(ScheduleUnit)-1),"") -> d/Week | F8: =D8 -> Total days | G8: =IF(ScheduleUnit<>"","d/"&LEFT(ScheduleUnit,LEN(ScheduleUnit)-1),"") -> d/Week | H8: =D8 -> Total days | I8: =IF(ScheduleUnit<>"","d/"&LEFT(ScheduleUnit,LEN(ScheduleUnit)-1),"") -> d/Week | J8: =D8 -> Total days | K8: =IF(ScheduleUnit<>"","d/"&LEFT(ScheduleUnit,LEN(ScheduleUnit)-1),"") -> d/Week
B9: =TabProjectRoles[Role] -> Project Manager | C9: =INDEX(TabProjectRoles[Area],MATCH($B9,TabProjectRoles[Role],0)) -> Management | D9: =IF(D$17<>"",D$17*INDEX(TabProjectRoles[Analysis],MATCH($B9,TabProjectRoles[Role],0)),"") -> 18 | E9: =IF(AND(ProjectType<>"",ScheduleUnit<>""),D9/D$6,"") -> 2.25 | F9: =IF(F$17<>"",F$17*INDEX(TabProjectRoles[Design & Build],MATCH($B9,TabProjectRoles[Role],0)),"") -> 54 | G9: =IF(AND(ProjectType<>"",ScheduleUnit<>""),F9/F$6,"") -> 1.6875 | H9: =IF(H$17<>"",H$17*INDEX(TabProjectRoles[Release],MATCH($B9,TabProjectRoles[Role],0)),"") -> 18 | I9: =IF(AND(ProjectType<>"",ScheduleUnit<>""),H9/H$6,"") -> 2.25 | J9: =SUM(D9,F9,H9) -> 90 | K9: =IF(AND(ProjectType<>"",ScheduleUnit<>""),J9/J$6,"") -> 1.875
B10: Change Manager | C10: =INDEX(TabProjectRoles[Area],MATCH($B10,TabProjectRoles[Role],0)) -> Management | D10: =IF(D$17<>"",D$17*INDEX(TabProjectRoles[Analysis],MATCH($B10,TabProjectRoles[Role],0)),"") -> 6 | E10: 0.75 | F10: =IF(F$17<>"",F$17*INDEX(TabProjectRoles[Design & Build],MATCH($B10,TabProjectRoles[Role],0)),"") -> 18 | G10: 0.5625 | H10: =IF(H$17<>"",H$17*INDEX(TabProjectRoles[Release],MATCH($B10,TabProjectRoles[Role],0)),"") -> 6 | I10: 0.75 | J10: =SUM(D10,F10,H10) -> 30 | K10: 0.625
B11: Architect | C11: =INDEX(TabProjectRoles[Area],MATCH($B11,TabProjectRoles[Role],0)) -> IT | D11: =IF(D$17<>"",D$17*INDEX(TabProjectRoles[Analysis],MATCH($B11,TabProjectRoles[Role],0)),"") -> 12 | E11: 1.5 | F11: =IF(F$17<>"",F$17*INDEX(TabProjectRoles[Design & Build],MATCH($B11,TabProjectRoles[Role],0)),"") -> 36 | G11: 1.125 | H11: =IF(H$17<>"",H$17*INDEX(TabProjectRoles[Release],MATCH($B11,TabProjectRoles[Role],0)),"") -> 12 | I11: 1.5 | J11: 60 | K11: 1.25
B12: Business Process Owners | C12: =INDEX(TabProjectRoles[Area],MATCH($B12,TabProjectRoles[Role],0)) -> Business | D12: =IF(D$17<>"",D$17*INDEX(TabProjectRoles[Analysis],MATCH($B12,TabProjectRoles[Role],0)),"") -> 90 | E12: 11.25 | F12: =IF(F$17<>"",F$17*INDEX(TabProjectRoles[Design & Build],MATCH($B12,TabProjectRoles[Role],0)),"") -> 24.75 | G12: 0.7734375 | H12: =IF(H$17<>"",H$17*INDEX(TabProjectRoles[Release],MATCH($B12,TabProjectRoles[Role],0)),"") -> 15 | I12: 1.875 | J12: 129.75 | K12: 2.703125
B13: Key Users | C13: =INDEX(TabProjectRoles[Area],MATCH($B13,TabProjectRoles[Role],0)) -> Business | D13: =IF(D$17<>"",D$17*INDEX(TabProjectRoles[Analysis],MATCH($B13,TabProjectRoles[Role],0)),"") -> 0 | E13: 0 | F13: =IF(F$17<>"",F$17*INDEX(TabProjectRoles[Design & Build],MATCH($B13,TabProjectRoles[Role],0)),"") -> 180 | G13: 5.625 | H13: =IF(H$17<>"",H$17*INDEX(TabProjectRoles[Release],MATCH($B13,TabProjectRoles[Role],0)),"") -> 60 | I13: 7.5 | J13: 240 | K13: 5
B14: Data Migration | C14: =INDEX(TabProjectRoles[Area],MATCH($B14,TabProjectRoles[Role],0)) -> IT | D14: =IF(D$17<>"",D$17*INDEX(TabProjectRoles[Analysis],MATCH($B14,TabProjectRoles[Role],0)),"") -> 9 | E14: 1.125 | F14: =IF(F$17<>"",F$17*INDEX(TabProjectRoles[Design & Build],MATCH($B14,TabProjectRoles[Role],0)),"") -> 54 | G14: 1.6875 | H14: =IF(H$17<>"",H$17*INDEX(TabProjectRoles[Release],MATCH($B14,TabProjectRoles[Role],0)),"") -> 12 | I14: 1.5 | J14: 75 | K14: 1.5625
B15: IT Support | C15: =INDEX(TabProjectRoles[Area],MATCH($B15,TabProjectRoles[Role],0)) -> IT | D15: =IF(D$17<>"",D$17*INDEX(TabProjectRoles[Analysis],MATCH($B15,TabProjectRoles[Role],0)),"") -> 15 | E15: 1.875 | F15: =IF(F$17<>"",F$17*INDEX(TabProjectRoles[Design & Build],MATCH($B15,TabProjectRoles[Role],0)),"") -> 45 | G15: 1.40625 | H15: =IF(H$17<>"",H$17*INDEX(TabProjectRoles[Release],MATCH($B15,TabProjectRoles[Role],0)),"") -> 15 | I15: 1.875 | J15: 75 | K15: 1.5625
B16: Test Manager | C16: =INDEX(TabProjectRoles[Area],MATCH($B16,TabProjectRoles[Role],0)) -> IT | D16: =IF(D$17<>"",D$17*INDEX(TabProjectRoles[Analysis],MATCH($B16,TabProjectRoles[Role],0)),"") -> 0 | E16: 0 | F16: =IF(F$17<>"",F$17*INDEX(TabProjectRoles[Design & Build],MATCH($B16,TabProjectRoles[Role],0)),"") -> 36 | G16: 1.125 | H16: =IF(H$17<>"",H$17*INDEX(TabProjectRoles[Release],MATCH($B16,TabProjectRoles[Role],0)),"") -> 12 | I16: 1.5 | J16: 48 | K16: 1
B17: Total | D17: =IF(ProjectType<>"",INDEX(TabProjectTypes[Analysis Days],MATCH(ProjectType,TabProjectTypes[Type],0)),"") -> 150 | E17: =SUM(E9:E16) -> 18.75 | F17: =IF(ProjectType<>"",INDEX(TabProjectTypes[Design & Build Days],MATCH(ProjectType,TabProjectTypes[Type],0)),"") -> 450 | G17: 13.9921875 | H17: =IF(ProjectType<>"",INDEX(TabProjectTypes[Release Days],MATCH(ProjectType,TabProjectTypes[Type],0)),"") -> 150 | I17: 18.75 | J17: 750 | K17: 15.578125
B19: Project Type - SELECT YOUR OPTION | D19: Define requirements, process and solution blueprint. | F19: Incremental design, build, adoption and validation of the solution. | H19: Integration test, user acceptance, training, go-live and stabilization. | J19: =_xlfn.IFNA(INDEX(TabProjectTypes[Description],MATCH(ProjectType,TabProjectTypes[Type],0)),"") -> Midsized to large company, either local implementation with more complex scope or average scope and multiple entities.
B21: 3. Green
B41: • 1 process owner and 1 key-user per domain is assumed.
B42: • IT Support encompasses legacy system support, security administration, documents and reports lay-out.
B43: • Internal legacy development or interfaces are not included.
B44: • Calculations based on Cegeka Sure Value implementation methodology

Sheet Chart Support (hidden)
A1: Role | B1: ='Customer Effort Estimator'!D7 -> ANALYSIS | C1: ='Customer Effort Estimator'!F7 -> DESIGN & BUILD | D1: ='Customer Effort Estimator'!H7 -> RELEASE
A2: =_xlfn.ANCHORARRAY('Customer Effort Estimator'!B9) -> Project Manager | B2: ='Customer Effort Estimator'!D9 -> 18 | C2: ='Customer Effort Estimator'!F9 -> 54 | D2: ='Customer Effort Estimator'!H9 -> 18
A3: Change Manager | B3: ='Customer Effort Estimator'!D10 -> 6 | C3: ='Customer Effort Estimator'!F10 -> 18 | D3: ='Customer Effort Estimator'!H10 -> 6
A4: Architect | B4: ='Customer Effort Estimator'!D11 -> 12 | C4: ='Customer Effort Estimator'!F11 -> 36 | D4: ='Customer Effort Estimator'!H11 -> 12
A5: Business Process Owners | B5: ='Customer Effort Estimator'!D12 -> 90 | C5: ='Customer Effort Estimator'!F12 -> 24.75 | D5: ='Customer Effort Estimator'!H12 -> 15
A6: Key Users | B6: ='Customer Effort Estimator'!D13 -> 0 | C6: ='Customer Effort Estimator'!F13 -> 180 | D6: ='Customer Effort Estimator'!H13 -> 60
A7: Data Migration | B7: ='Customer Effort Estimator'!D14 -> 9 | C7: ='Customer Effort Estimator'!F14 -> 54 | D7: ='Customer Effort Estimator'!H14 -> 12
A8: IT Support | B8: ='Customer Effort Estimator'!D15 -> 15 | C8: ='Customer Effort Estimator'!F15 -> 45 | D8: ='Customer Effort Estimator'!H15 -> 15
A9: Test Manager | B9: ='Customer Effort Estimator'!D16 -> 0 | C9: ='Customer Effort Estimator'!F16 -> 36 | D9: ='Customer Effort Estimator'!H16 -> 12
A13: Area | B13: ANALYSIS | C13: DESIGN & BUILD | D13: RELEASE
A14: =_xlfn.UNIQUE('Customer Effort Estimator'!C9:C16) -> Management | B14: =SUMIF('Customer Effort Estimator'!C9:C16,'Chart Support'!A14,'Customer Effort Estimator'!D9:D16) -> 24 | C14: =SUMIF('Customer Effort Estimator'!C9:C16,'Chart Support'!A14,'Customer Effort Estimator'!F9:F16) -> 72 | D14: =SUMIF('Customer Effort Estimator'!C9:C16,'Chart Support'!A14,'Customer Effort Estimator'!H9:H16) -> 24
A15: IT | B15: =SUMIF('Customer Effort Estimator'!C9:C16,'Chart Support'!A15,'Customer Effort Estimator'!D9:D16) -> 36 | C15: =SUMIF('Customer Effort Estimator'!C9:C16,'Chart Support'!A15,'Customer Effort Estimator'!F9:F16) -> 171 | D15: =SUMIF('Customer Effort Estimator'!C9:C16,'Chart Support'!A15,'Customer Effort Estimator'!H9:H16) -> 51
A16: Business | B16: =SUMIF('Customer Effort Estimator'!C9:C16,'Chart Support'!A16,'Customer Effort Estimator'!D9:D16) -> 90 | C16: =SUMIF('Customer Effort Estimator'!C9:C16,'Chart Support'!A16,'Customer Effort Estimator'!F9:F16) -> 204.75 | D16: =SUMIF('Customer Effort Estimator'!C9:C16,'Chart Support'!A16,'Customer Effort Estimator'!H9:H16) -> 75

Sheet Parameters (hidden)
B1: PROJECT TYPES | S1: PROJECT ROLES | Y1: SCHEDULE UNITS
B2: Type | C2: Description | D2: Supplier Days | E2: Analysis Duration Weeks | F2: Design & Build Duration Weeks | G2: Release Duration Weeks | H2: Total Project Weeks | I2: Avg Days / Week | J2: Analysis Weight % | K2: Design & Build Weight % | L2: Release Weight % | M2: Total Project Weight % | N2: Analysis Days | O2: Design & Build Days | P2: Release Days | Q2: Total Project Days | S2: Role | T2: Area | U2: Analysis | V2: Design & Build | W2: Release | Y2: Unit | Z2: Weeks
B3: 1. Orange | C3: Small to midsized company, local implementation, limited amount of entities and limited scope. | D3: 150 | E3: 3 | F3: 10 | G3: 3 | H3: =SUM(TabProjectTypes[[#This Row],[Analysis Duration Weeks]:[Release Duration Weeks]]) -> 16 | I3: =TabProjectTypes[[#This Row],[Supplier Days]]/TabProjectTypes[[#This Row],[Total Project Weeks]] -> 9.375 | J3: 0.2 | K3: 0.6 | L3: 0.2 | M3: =SUM(TabProjectTypes[[#This Row],[Analysis Weight %]:[Release Weight %]]) -> 1 | N3: =TabProjectTypes[[#This Row],[Analysis Weight %]]*TabProjectTypes[[#This Row],[Supplier Days]] -> 30 | O3: =TabProjectTypes[[#This Row],[Design & Build Weight %]]*TabProjectTypes[[#This Row],[Supplier Days]] -> 90 | P3: =TabProjectTypes[[#This Row],[Release Weight %]]*TabProjectTypes[[#This Row],[Supplier Days]] -> 30 | Q3: =SUM(TabProjectTypes[[#This Row],[Analysis Days]:[Release Days]]) -> 150 | S3: Project Manager | T3: Management | U3: 0.12 | V3: 0.12 | W3: 0.12 | Y3: Weeks | Z3: 1
B4: 2. Yellow | C4: Midsized company with either limited scope and multiple entities or single entity and average scope. | D4: 350 | E4: 5 | F4: 18 | G4: 5 | H4: =SUM(TabProjectTypes[[#This Row],[Analysis Duration Weeks]:[Release Duration Weeks]]) -> 28 | I4: =TabProjectTypes[[#This Row],[Supplier Days]]/TabProjectTypes[[#This Row],[Total Project Weeks]] -> 12.5 | J4: 0.2 | K4: 0.6 | L4: 0.2 | M4: =SUM(TabProjectTypes[[#This Row],[Analysis Weight %]:[Release Weight %]]) -> 1 | N4: =TabProjectTypes[[#This Row],[Analysis Weight %]]*TabProjectTypes[[#This Row],[Supplier Days]] -> 70 | O4: =TabProjectTypes[[#This Row],[Design & Build Weight %]]*TabProjectTypes[[#This Row],[Supplier Days]] -> 210 | P4: =TabProjectTypes[[#This Row],[Release Weight %]]*TabProjectTypes[[#This Row],[Supplier Days]] -> 70 | Q4: =SUM(TabProjectTypes[[#This Row],[Analysis Days]:[Release Days]]) -> 350 | S4: Change Manager | T4: Management | U4: 0.04 | V4: 0.04 | W4: 0.04 | Y4: Months | Z4: 4
B5: 3. Green | C5: Midsized to large company, either local implementation with more complex scope or average scope and multiple entities. | D5: 750 | E5: 8 | F5: 32 | G5: 8 | H5: =SUM(TabProjectTypes[[#This Row],[Analysis Duration Weeks]:[Release Duration Weeks]]) -> 48 | I5: =TabProjectTypes[[#This Row],[Supplier Days]]/TabProjectTypes[[#This Row],[Total Project Weeks]] -> 15.625 | J5: 0.2 | K5: 0.6 | L5: 0.2 | M5: =SUM(TabProjectTypes[[#This Row],[Analysis Weight %]:[Release Weight %]]) -> 1 | N5: =TabProjectTypes[[#This Row],[Analysis Weight %]]*TabProjectTypes[[#This Row],[Supplier Days]] -> 150 | O5: =TabProjectTypes[[#This Row],[Design & Build Weight %]]*TabProjectTypes[[#This Row],[Supplier Days]] -> 450 | P5: =TabProjectTypes[[#This Row],[Release Weight %]]*TabProjectTypes[[#This Row],[Supplier Days]] -> 150 | Q5: =SUM(TabProjectTypes[[#This Row],[Analysis Days]:[Release Days]]) -> 750 | S5: Architect | T5: IT | U5: 0.08 | V5: 0.08 | W5: 0.08
B6: 4. Blue | C6: Large size companies with multiple entities, active in multiple countries. | D6: 1250 | E6: 12 | F6: 48 | G6: 12 | H6: =SUM(TabProjectTypes[[#This Row],[Analysis Duration Weeks]:[Release Duration Weeks]]) -> 72 | I6: =TabProjectTypes[[#This Row],[Supplier Days]]/TabProjectTypes[[#This Row],[Total Project Weeks]] -> 17.36111111 | J6: 0.2 | K6: 0.6 | L6: 0.2 | M6: =SUM(TabProjectTypes[[#This Row],[Analysis Weight %]:[Release Weight %]]) -> 1 | N6: =TabProjectTypes[[#This Row],[Analysis Weight %]]*TabProjectTypes[[#This Row],[Supplier Days]] -> 250 | O6: =TabProjectTypes[[#This Row],[Design & Build Weight %]]*TabProjectTypes[[#This Row],[Supplier Days]] -> 750 | P6: =TabProjectTypes[[#This Row],[Release Weight %]]*TabProjectTypes[[#This Row],[Supplier Days]] -> 250 | Q6: =SUM(TabProjectTypes[[#This Row],[Analysis Days]:[Release Days]]) -> 1250 | S6: Business Process Owners | T6: Business | U6: 0.6 | V6: 0.055 | W6: 0.1 | AC6: =52/12 -> 4.333333333
B7: 5. Purple | C7: Enterprise company, full international scope. | D7: 2000 | E7: 16 | F7: 64 | G7: 20 | H7: =SUM(TabProjectTypes[[#This Row],[Analysis Duration Weeks]:[Release Duration Weeks]]) -> 100 | I7: =TabProjectTypes[[#This Row],[Supplier Days]]/TabProjectTypes[[#This Row],[Total Project Weeks]] -> 20 | J7: 0.2 | K7: 0.6 | L7: 0.2 | M7: =SUM(TabProjectTypes[[#This Row],[Analysis Weight %]:[Release Weight %]]) -> 1 | N7: =TabProjectTypes[[#This Row],[Analysis Weight %]]*TabProjectTypes[[#This Row],[Supplier Days]] -> 400 | O7: =TabProjectTypes[[#This Row],[Design & Build Weight %]]*TabProjectTypes[[#This Row],[Supplier Days]] -> 1200 | P7: =TabProjectTypes[[#This Row],[Release Weight %]]*TabProjectTypes[[#This Row],[Supplier Days]] -> 400 | Q7: =SUM(TabProjectTypes[[#This Row],[Analysis Days]:[Release Days]]) -> 2000 | S7: Key Users | T7: Business | U7: 0 | V7: 0.4 | W7: 0.4
S8: Data Migration | T8: IT | U8: 0.06 | V8: 0.12 | W8: 0.08
S9: IT Support | T9: IT | U9: 0.1 | V9: 0.1 | W9: 0.1
S10: Test Manager | T10: IT | U10: 0 | V10: 0.08 | W10: 0.08
S11: Total | U11: =SUBTOTAL(109,TabProjectRoles[Analysis]) -> 1 | V11: =SUBTOTAL(109,TabProjectRoles[Design & Build]) -> 0.995 | W11: =SUBTOTAL(109,TabProjectRoles[Release]) -> 1

Sheet Template Versions (hidden)
A1: Date | B1: Person | C1: Template Version | D1: Change Description
A2: 2022-06-20 | B2: Cegeka | C2: 1.0 | D2: Initial version of the Customer Effort Estimator.
